Cogmind - Beta 11.1 @@@ ROGUE MODE // 2022.08.31 @ 12:32:02 Player: eldritch Result: Self-destructed Performance ------------- Evolutions (1) 500 Regions Visited (2) 400 Robots Destroyed (14) 70 Value Destroyed (388) 388 Prototype IDs (3) 60 Alien Tech Used (0) 0 Bonus (0) 0 TOTAL SCORE: 1418 Bonus ------- None Cogmind --------- Core Integrity 286/400 Matter 279/300 Energy 515/515 System Corruption 0% Temperature Warning (358) Movement Rolling (110) Ox2 Location -9/Materials Parts ------- > --- POWER (1) -------- Improved Ion Engine > --- PROPULSION (3) --- Wheel > --- UTILITY (3) ------ Medium Storage Unit High-capacity Battery > --- WEAPON (2) ------- Improved Medium Laser Light Assault Rifle > --- INVENTORY (10) --- Large Storage Unit Sensor Array Heavy EM Pulse Gun Heavy EM Pulse Gun Improved Medium Laser Plasma Cutter Peak State ------------ > --- POWER ------------ Improved Ion Engine > --- PROPULSION ------- Aluminum Leg Aluminum Leg > --- UTILITY ---------- Heat Sink Medium Storage Unit High-capacity Battery > --- WEAPON ----------- Improved Medium Laser Improved Medium Laser > --- INVENTORY -------- Improved Ion Engine Wheel Large Storage Unit Sensor Array Heavy EM Pulse Gun Heavy EM Pulse Gun Plasma Cutter [Rating: 14] Favorites ----------- Power Improved Ion Engine Engine Improved Ion Engine Propulsion Wheel Leg Aluminum Leg Wheel Wheel Utility Heat Sink Device Heat Sink Storage Medium Storage Unit Weapon Heavy EM Pulse Gun Energy Gun Heavy EM Pulse Gun Ballistic Gun Light Assault Rifle Build | -11 -10 -9 ------- Run | Scr Mat Mat Slots Evolved 2 | . . 2 Power . | . . . Propulsion 1 | . . 1 Utility 1 | . . 1 Weapon . | . . . Parts Attached 24 | 6 10 8 Power 4 | 1 2 1 Engine 4 | 1 2 1 Core . | . . . Reactor . | . . . Propulsion 6 | 2 3 1 Treads . | . . . Leg 2 | . 2 . Wheel 4 | 2 1 1 Hover . | . . . Flight . | . . . Utility 4 | 1 2 1 Device 1 | . 1 . Storage 3 | 1 1 1 Processor . | . . . Hackware . | . . . Protection . | . . . Artifact . | . . . Weapon 10 | 2 3 5 Energy Gun 9 | 2 3 4 Energy Cannon . | . . . Ballistic Gun 1 | . . 1 Ballistic Cannon . | . . . Launcher . | . . . Special Weapon . | . . . Impact Weapon . | . . . Slashing Weapon . | . . . Piercing Weapon . | . . . Special Melee Weapon . | . . . Unidentified Prototypes 1 | . 1 . Parts Lost 7 | . 1 6 Power 1 | . . 1 Propulsion 3 | . 1 2 Utility 1 | . . 1 Weapon 2 | . . 2 Highest Loss Streak 2 | . 1 2 To Critical Strikes . | . . . Average Slot Usage (%) 93 | . 98 83 Engine 13 | . 14 11 Leg 8 | . 3 19 Wheel 16 | . 23 1 Device 11 | . 13 8 Storage 16 | . 14 22 Energy Gun 25 | . 28 21 Naked Turns . | . . . Heaviest Build 28 | 12 24 28 Greatest Support 26 | 26 26 20 Greatest Overweight (x) 2 | . 2 2 Average Overweight (x) . | . . 1 Largest Inventory Capacity 10 | 8 10 10 Average Capacity 9 | 6 9 10 Most Carried 10 | 4 10 8 Average Carried 7 | 2 8 6 Final Capacity 10 | 8 10 10 Final Carried 9 | 4 9 6 Class Distribution -------------------- 100% | Mutant Dominant Class ---------------- Mutant | -10/Materials Mutant | -9/Materials Resources | -11 -10 -9 ----------- Run | Scr Mat Mat Matter Collected 387 | 226 129 32 Remotely . | . . . Salvage Created 537 | . 243 294 Parts 29 | . 17 12 Haulers Intercepted 1 | . 1 . Recyclers Shooed . | . . . Parts Field Recycled . | . . . Retrieved Matter . | . . . Parts Self-Destructed . | . . . Prevented . | . . . Kills | -11 -10 -9 ------- Run | Scr Mat Mat Combat Hostiles Destroyed 12 | . 3 9 Guns 10 | . 3 7 AOE 1 | . . 1 Classes Destroyed 5 | . 3 2 Hauler 1 | . 1 . Recycler 1 | . 1 . Swarmer 4 | . . 4 Grunt 6 | . 3 3 Sentry 2 | . . 2 Best Kill Streak 4 | . 2 4 Combat Bots Only 4 | . 2 4 Max Kills in Single Turn 1 | . 1 1 Gunslinging . | . . . Exploded 1 | . . 1 Melee . | . . . Uniques/NPCs Destroyed . | . . . Combat | -11 -10 -9 -------- Run | Scr Mat Mat Damage Taken 768 | . 120 648 Core 127 | . 13 114 Absorbed by Shields . | . . . Core Remaining (%) 97 | 100 94 . Volleys Fired 48 | . 17 31 Largest 2 | . 2 2 Hottest 112 | . 90 112 Shots Fired 92 | . 34 58 Gun 92 | . 34 58 Cannon . | . . . Launcher . | . . . Special . | . . . Kinetic 3 | . . 3 Thermal 44 | . . 44 Explosive . | . . . Electromagnetic 45 | . 34 11 Robot Hit Streak 8 | . 8 6 Robot Miss Streak 4 | . 3 4 Penetration Max . | . . . Secondary Targets 1 | . 1 . Max Gunslinging Chain 1 | . 1 . Shots Hit Robots 56 | . 20 36 Core Hits 17 | . 7 10 Critical Kills . | . . . Critical Parts Destroyed . | . . . Critical Strikes 3 | . . 3 Burn 3 | . . 3 Melee Attacks . | . . . Impact . | . . . Slashing . | . . . Piercing . | . . . Sneak Attacks . | . . . Combat Hostiles . | . . . Follow-up Attacks . | . . . Damage Inflicted 963 | . 339 624 Guns 879 | . 302 577 Cannons . | . . . Explosions 84 | . 37 47 Melee . | . . . Ramming . | . . . Kinetic 12 | . . 12 Thermal 572 | . 37 535 Explosive . | . . . Electromagnetic 379 | . 302 77 Impact . | . . . Slashing . | . . . Piercing . | . . . Highest Corruption . | . . . Average Corruption . | . . . Corruption Purged . | . . . Corruption Blocked . | . . . Overload Shots . | . . . Overflow Damage . | . . . Projectiles . | . . . Explosions . | . . . Melee . | . . . Knockbacks . | . . . Impact . | . . . Kinetic . | . . . Secondary . | . . . Self-Inflicted Damage 65 | . . 65 Shots 1 | . . 1 Rammed . | . . . Targets Rammed . | . . . Kicked . | . . . Crushed . | . . . Highest Temperature 401 | . 287 401 Average Temperature 139 | . 74 171 Received Heat Transfer 219 | . 72 147 Effects 2 | . . 2 Shutdowns 1 | . . 1 Energy Bleed 1 | . . 1 Siege Activations . | . . . Robots Corrupted . | . . . Combat Hostiles . | . . . Parts Fried 1 | . 1 . Impact Corruptions . | . . . Robots Melted 1 | . . 1 Combat Hostiles 1 | . . 1 Parts Melted 8 | . . 8 Heat Transferred 1395 | . 50 1345 Parts Sabotaged . | . . . Parts Stolen . | . . . Parts Stripped . | . . . Power Chain Reactions 2 | . 1 1 Missiles Intercepted . | . . . Alert | -11 -10 -9 ------- Run | Scr Mat Mat Peak Influence 332 | . 116 332 Initial . | . . . Average 76 | . 46 160 Maximum Alert Level 1 | . . 1 Low Security (%) 85 | 100 100 53 Level 1 14 | . . 46 Level 2 . | . . . Level 3 . | . . . Level 4 . | . . . Level 5 . | . . . High Security . | . . . Max Security . | . . . Squads Dispatched . | . . . Investigation . | . . . Extermination . | . . . Reinforcement . | . . . Assault . | . . . Garrison . | . . . Intercept . | . . . Searches Triggered . | . . . Construction Impeded . | . . . Haulers Reinforced . | . . . Active Scanning Responses . | . . . Cargo Convoy Interrupts . | . . . Stealth | -11 -10 -9 --------- Run | Scr Mat Mat Distress Signals 1 | . . 1 Communications Jammed . | . . . Distress Signals . | . . . Times Spotted 16 | . 5 11 Peak Tracking Total 5 | . 2 5 Tactical Retreats 1 | . . 1 Traps | -11 -10 -9 ------- Run | Scr Mat Mat Traps Triggered . | . . . Indirectly . | . . . Trap Hack Attempts . | . . . Triggered . | . . . Disarmed . | . . . Reprogrammed . | . . . Reused . | . . . Traps Extracted . | . . . Installed . | . . . Triggered . | . . . Machines | -11 -10 -9 ---------- Run | Scr Mat Mat Machines Disabled 2 | . . 2 Max in Single Turn 2 | . . 2 Machines Sabotaged . | . . . Garrisons Compromised . | . . . Overloaded Fab Kills . | . . . Hacking | -11 -10 -9 --------- Run | Scr Mat Mat Machines Accessed 3 | . 1 2 Terminals 2 | . 1 1 Fabricators . | . . . Repair Stations . | . . . Recycling Units 1 | . . 1 Scanalyzers . | . . . Garrison Access . | . . . Total Hacks 6 | . 3 3 Successful 3 | . 2 1 Failed 3 | . 1 2 Catastrophic . | . . . Database Lockouts . | . . . Manual 4 | . 2 2 Terminals 5 | . 3 2 Fabricators . | . . . Repair Stations . | . . . Recycling Units 1 | . . 1 Scanalyzers . | . . . Garrison Access . | . . . Terminal Hacks 1 | . 1 . Prototype ID Bank 1 | . 1 . Fabricator Hacks . | . . . Repair Station Hacks . | . . . Recycling Unit Hacks 1 | . . 1 Retrieve Components 1 | . . 1 Scanalyzer . | . . . Garrison Access Hacks . | . . . Unauthorized Hacks 1 | . 1 . Terminals 1 | . 1 . Botnet 1 | . 1 . Fabricators . | . . . Repair Stations . | . . . Recycling Units . | . . . Scanalyzers . | . . . Garrison Access . | . . . Data Cores Recovered . | . . . Used . | . . . Hacking Detections 2 | . 1 1 Full Trace Events 1 | . . 1 Feedback Events . | . . . Feedback Blocked . | . . . Robot Schematics Acquired . | . . . Robots Built . | . . . Authchips . | . . . Time . | . . . Total Robot Build Rating . | . . . Part Schematics Acquired . | . . . Parts Built . | . . . Authchips . | . . . Time . | . . . Total Part Build Rating . | . . . Parts Repaired . | . . . Time . | . . . Parts Recycled . | . . . Recycled Matter . | . . . Retrieved Matter . | . . . Retrieved Components 1 | . . 1 Parts Scanalyzed . | . . . Part Schematics Acquired . | . . . Parts Damaged . | . . . Bothacking | -11 -10 -9 ------------ Run | Scr Mat Mat Used RIF Installer . | . . . Robots Hacked . | . . . Non-combat . | . . . Combat . | . . . Robot Hacks Applied . | . . . Relay Couplers Released . | . . . Fabnet Peak Effective % . | . . . Robots Rewired . | . . . Allies Hacked . | . . . Hacks Repelled . | . . . Allies | -11 -10 -9 -------- Run | Scr Mat Mat Total Allies . | . . . Largest Group . | . . . Highest-Rated Group . | . . . Highest-Rated Ally . | . . . Total Orders . | . . . Ally Attacks . | . . . Total Damage . | . . . Kills . | . . . Allies Corrupted . | . . . Allies Melted . | . . . Intel | -11 -10 -9 ------- Run | Scr Mat Mat Robot Analysis Total . | . . . Derelict Logs Recovered . | . . . Drone Launches . | . . . Drone Recoveries . | . . . Exploration | -11 -10 -9 ------------- Run | Scr Mat Mat Turns Passed 690 | 54 427 209 Spaces Moved 461 | 47 356 58 Core 1 | 1 . . Treads . | . . . Legs 84 | . 28 56 Wheels 376 | 46 328 2 Hover . | . . . Flight . | . . . Fastest Speed 50 | 50 80 110 Average Speed 107 | 88 97 187 Slowest Speed 190 | 90 190 190 Overloaded Moves . | . . . Propulsion Burnouts . | . . . Robots Hopped . | . . . Cave-ins Triggered . | . . . Exploration Rate (%) 22 | 3 53 12 Regions Visited 2 Branch Regions . Pre-discovered Areas . | . . . Known Exits Taken . | . . . Unknown Exits Taken 2 | 1 1 . Scrap Searched . | . . . Spaces Dug . | . . . Terrain Destroyed 25 | . 3 22 Melee . | . . . Projectile . | . . . AOE 25 | . 3 22 Terrain Rammed . | . . . Walls Destroyed . | . . . Machines Disabled . | . . . Actions | -11 -10 -9 --------- Run | Scr Mat Mat Total 564 | 56 409 99 Wait 2 | . 2 . Move 459 | 46 355 58 Hop . | . . . Pick Up 18 | 4 12 2 Fast Attach 9 | 6 3 . Attach 7 | . 2 5 Detach . | . . . Swap 8 | . 5 3 Drop 13 | . 13 . Fire 48 | . 17 31 Melee . | . . . Ram . | . . . Kick . | . . . Crush . | . . . Escape Stasis . | . . . Rewire . | . . . Trap . | . . . Miscellaneous . | . . . Route ------- -11/Scrapyard -10/Materials (discovered 3 exits: *Mat / [*Min x2]) -9/Materials History --------- Turn | Location | Event 22 | -11/Scrapyard | Discovered new exit (range 15) 55 | -11/Scrapyard | Entered Materials 254 | -10/Materials | Discovered new exit (range 16) 332 | -10/Materials | Build established: Mutant 454 | -10/Materials | Discovered new exit (range 9) 465 | -10/Materials | Discovered new exit (range 8) 482 | -10/Materials | Entered another Materials area 482 | -9/Materials | Evolved 2 slots: Propulsion x1, Utility x1 691 | -9/Materials | Self-destructed Last Messages --------------- 00645_ Heat Sink destroyed. 00647_ Y-45 Defender suffers critical hit (Burn). 00654_ Aluminum Leg destroyed. 00656_ Melted Lgt. Armor Plating. 00662_ Y-45 Defender heat spikes uncontrollably. 00662_ Melted Lgt. Treads. 00662_ Y-45 Defender suffers critical hit (Burn). 00666_ Y-45 Defender heat spikes uncontrollably. 00669_ Y-45 Defender critical meltdown. 00669_ Hvy. Assault Rifle melted. 00669_ Heat Sink melted. 00669_ Lgt. Treads melted. 00671_ Overheating: Energy bleed (-87). 00674_ Flight Unit melted. 00674_ S-10 Pest destroyed. 00679_ Acquired Lgt. Assault Rifle. 00685_ Aluminum Leg destroyed. 00688_ Y-45 Defender destroyed. 00689_ Power failure, Imp. Ion Engine shutdown. 00690_ R-06 Scavenger collects Lgt. Treads. Map ----- +----------------------------------------------------+ | ??????????????????? #??????????? | | ??????????????????? #??????????? | | ???????????????????# ########## ##?????????? | | ???????????????????# #?????# ##????????? | | ???????????????????# #????## #????????? | | ???????????????????# ######## #????????? | | ???????????????????# # # #????????? | | ???????????????????#" # "" # * #????????? | | ???????????????????#%" # Y" # [ #????????? | | ???????????????????#" # "" # #????????? | | ???????????????????# # # #????????? | | ???????????????????# # """ # #????????? | | ???????????????????# %#*""" ### ####????????? | | ???????????????????# %"=""" ########???????????? | | ???????????????????# #% #??????????????????? | | ???????????????????# #[""" [#??????????????????? | | ???????????????????# # """ #??????????????????? | | ???????????????????# # """ #??????????????????? | | ???????????????????# # !#??????????????????? | | ???????????????????# ###########???????????????? | | ???????????????????# ## #???????????????? | | ??????????????????##a C## """ #???????????????? | | ????????????####+## # """ #???????????????? | | ?????? !# """ #???????????????? | | ?????? T %/r!! #???????????????? | | ?????? #@!! "#???????????????? | | ??????? #######+## # T#???????????????? | | ?????????????? ?#### ## % "#???????????????? | | ?????????????"""?????# ## #???????????????? | | ???????????? ""??????# ####### ###???????????????? | | ?????????????????????# #??????##?????????????????? | | ?????????????????????# #?????????????????????????? | | ?????????????????????# #?????????????????????????? | | ?????????????????????# #?????????????????????????? | | ?????????????????????# #?????????????????????????? | | ?????????????????????# #?????????????????????????? | | ?????????????????????? ??????????????????????????? | | ?????????????????????? ??????????????????????????? | | ?????????????????????? ??????????????????????????? | | ?????????????????????????????????????????????????? | | ?????????????????????????????????????????????????? | | ?????????????????????????????????????????????????? | | ?????????????????????????????????????????????????? | | ?????????????????????????????????????????????????? | | ?????????????????????????????????????????????????? | | ?????????????????????????????????????????????????? | | ?????????????????????????????????????????????????? | | ?????????????????????????????????????????????????? | | ?????????????????????????????????????????????????? | | ?????????????????????????????????????????????????? | +----------------------------------------------------+ Best States ------------- Heat Dissipation 38 Energy Generation 12 Energy Capacity 515 Matter Stores 300 Matter Capacity 300 Sight Range 16 Terrain Scan Density 10 Evasion (%) 44 Item Schematics ----------------- None Robot Schematics ------------------ None Fabricated ------------ Nothing Alien Tech Used ----------------- None Achievements -------------- None Challenges ------------ None Game ------ Seed TeslaDamperEngine Manual? 0 Play Time 00:07:19 Cumulative 265.3 hours Start 2022.08.31 @ 12:26:32 End 2022.08.31 @ 12:32:02 Sessions 1 Manual Loads 0 Difficulty Rogue Special Mode None Game No. 605 Rogue 605 Adventurer 0 Explorer 0 Win Type - Total 5 Types 4/0/0/1/0/0/0/0/0 Lore% 61 Gallery% 64 Achievement% 57 Wizard Run 0 Options --------- ASCII 0 Keyboard 0 Movement Numpad Keybinds 0 Fullscreen 1 Font 16/SmallcapsGlow Map View 75x55 Tactical HUD 1 Map Filters NONE Filters NONE Steam 1 RUN: d314a42b-6349-4fa9-855a-560df2ff314f